Cogmind - Beta 15 @@@ ROGUE MODE // 2025.09.19 @ 19:33:22 Player: winnking222 Result: Destroyed by H-77 Assassin with Coil Gun Performance ------------- Evolutions (6) 3000 Regions Visited (20) 4000 Robots Destroyed (342) 1710 Value Destroyed (16909) 16909 Prototype IDs (39) 780 Alien Tech Used (0) 0 Bonus (13618) 13618 TOTAL SCORE: 40017 Bonus ------- High Alert Combat Kills 6462 Follower Combat Kills 2777 Entered Garrisons 1200 Used RIF Installer 3000 Aligned with FarCom 300 Friendly Fire -121 Cogmind --------- Core Integrity 0/1150 Matter 222/300 Energy 100/100 System Corruption 12% Temperature Cool (0) Movement Core (100) Ox1 Location -4/Factory Parts ------- > --- POWER (2) -------- (None) > --- PROPULSION (5) --- (None) > --- UTILITY (8) ------ (None) > --- WEAPON (4) ------- Mini Smartbomb Launcher > --- INVENTORY (5) ---- Advanced Signal Interpreter Improved Medium Armor Plating KE Penetrator Deploy-a-Sentry Peak State ------------ > --- POWER ------------ Neutrino Core Micro Antimatter Reactor > --- PROPULSION ------- Enhanced Armored Medium Treads Armored Heavy Treads Improved Heavy Siege Treads > --- UTILITY ---------- Advanced Heat Sink Huge Storage Unit Improved Light Armor Plating Improved Medium Armor Plating Advanced Remote Force Field Relay Coupler [NC] Relay Coupler [Grunt] Relay Coupler [Hunter] > --- WEAPON ----------- KE Penetrator Heavy Linear Accelerator Advanced Remote Datajack > --- INVENTORY -------- Neutrino Core Improved Treads Improved Treads Armored Wheel Advanced Heat Sink Advanced Heat Sink Advanced Coolant Injector Matter Compressor Advanced Signal Interpreter Improved Medium Armor Plating Advanced Force Field Advanced Force Field Relay Coupler [Specialist] Relay Coupler [Hunter] Relay Coupler [Hunter] Advanced Corruption Screen Cooled Particle Cannon KE Penetrator KE Penetrator KE Penetrator Heavy Gauss Cannon Scatter Rocket Array Advanced Remote Datajack Plasma Cutter Deploy-a-Sentry [Rating: 127] Favorites ----------- Power Heavy Ion Engine Engine Heavy Ion Engine Power Core Neutrino Core Reactor Particle Reactor Propulsion Light Treads Treads Light Treads Leg Improved Titanium Leg Wheel Armored Wheel Utility High-capacity Storage Unit Device Advanced Heat Sink Storage High-capacity Storage Unit Processor Advanced Targeting Computer Hackware Relay Coupler [Grunt] Protection Light Armor Plating Weapon XL Autogun Subcomponent Energy Gun Quantum Rifle Energy Cannon Nova Cannon Ballistic Gun XL Autogun Subcomponent Ballistic Cannon Heavy Linear Accelerator Launcher Scatter Rocket Array Special Weapon Advanced Remote Datajack Special Melee Weapon Improved Datajack Build | -11 -10 -10 -9 -9 -9 -8 -8 -8 -8 -7 -7 -7 -7 -6 -6 -6 -6 -5 -5 -4 ------- Run | Yrd Mat Min Mat Min Exi Min Mat Sto Gar Fac Gar Fac Gar Fac Gar Fac Gar Fac Gar Fac Slots Evolved 12 | . . . 2 . . . 2 . . 2 . . . 2 . . . 2 . 2 Power 1 | . . . . . . . . . . . . . . 1 . . . . . . Propulsion 3 | . . . 1 . . . . . . 1 . . . . . . . . . 1 Utility 6 | . . . . . . . 1 . . 1 . . . 1 . . . 2 . 1 Weapon 2 | . . . 1 . . . 1 . . . . . . . . . . . . . Parts Attached 234 | 7 7 2 23 1 3 2 17 12 27 13 15 3 21 10 17 2 12 2 27 11 Power 28 | 1 . . 5 . . . . 2 3 2 1 . 2 1 3 . 2 . 5 1 Engine 17 | 1 . . 5 . . . . 2 1 1 1 . 2 1 2 . . . 1 . Core 8 | . . . . . . . . . 2 1 . . . . . . 1 . 3 1 Reactor 3 | . . . . . . . . . . . . . . . 1 . 1 . 1 . Propulsion 55 | 2 1 1 6 . . . 4 3 10 4 3 1 10 . 2 . 1 . 4 3 Treads 39 | 2 . . 6 . . . 4 3 10 . . . 5 . 2 . 1 . 4 2 Leg 15 | . 1 1 . . . . . . . 4 3 1 5 . . . . . . . Wheel 1 | . . . . . . . . . . . . . . . . . . . . 1 Hover . | . . . . . . . . . . . . . . . . . . . . . Flight . | . . . . . . . . . . . . . . . . . . . . . Utility 76 | 2 2 1 4 1 1 . 4 2 8 4 5 2 7 2 7 1 3 1 14 5 Device 19 | 1 . . . . . . 2 . 3 . 1 . 2 . 2 . 1 1 6 . Storage 7 | 1 1 1 . 1 . . . . . 1 . 1 . . . . . . . 1 Processor 2 | . . . 1 . . . . . . . . . . 1 . . . . . . Hackware 16 | . . . . . . . . . . 2 3 1 1 . 2 1 1 . 4 1 Protection 32 | . 1 . 3 . 1 . 2 2 5 1 1 . 4 1 3 . 1 . 4 3 Artifact . | . . . . . . . . . . . . . . . . . . . . . Weapon 75 | 2 4 . 8 . 2 2 9 5 6 3 6 . 2 7 5 1 6 1 4 2 Energy Gun 7 | . . . . . . . 1 . . . . . 1 . 1 . 2 1 1 . Energy Cannon 4 | . . . . . . . . . . . . . . 1 1 1 . . 1 . Ballistic Gun 46 | 2 4 . 7 . 1 2 6 3 5 2 5 . 1 3 . . 2 . 2 1 Ballistic Cannon 6 | . . . . . . . 1 . . . . . . 3 1 . 1 . . . Launcher 5 | . . . . . . . 1 2 . 1 . . . . . . . . . 1 Special Weapon 4 | . . . 1 . . . . . . . 1 . . . 1 . 1 . . . Impact Weapon . | . . . . . . . . . . . . . . . . . . . . . Slashing Weapon . | . . . . . . . . . . . . . . . . . . . . . Piercing Weapon . | . . . . . . . . . . . . . . . . . . . . . Special Melee Weapon 3 | . . . . . 1 . . . 1 . . . . . 1 . . . . . Unidentified Prototypes 15 | . . . 2 . . . 3 2 . . 1 . 1 2 . 1 . 1 . 2 Parts Lost 67 | . 3 . 2 . . 1 . . 5 4 1 . 4 1 10 . 1 . 13 22 Power 11 | . . . . . . . . . 1 1 . . . . 2 . 1 . 3 3 Propulsion 12 | . 1 . 2 . . . . . . . . . 2 . 2 . . . 1 4 Utility 22 | . . . . . . . . . 2 1 1 . 1 . 3 . . . 5 9 Weapon 22 | . 2 . . . . 1 . . 2 2 . . 1 1 3 . . . 4 6 Highest Loss Streak 17 | . 1 . 1 . . 1 . . 2 2 1 . 3 1 8 . 1 . 6 17 To Critical Strikes 3 | . . . . . . . . . . . . . . . . . . . 1 2 Average Backups 17 | 5 7 10 18 20 18 14 13 14 14 14 17 16 19 18 19 20 19 20 22 22 Power 1 | . 1 2 2 2 2 2 1 . . . . 1 1 . . 1 . . . . Propulsion 3 | 3 3 5 5 5 4 4 3 2 3 4 6 3 3 3 2 3 2 2 2 2 Utility 7 | . 2 3 7 6 5 3 3 3 4 6 6 8 11 11 11 10 10 10 11 11 Weapon 3 | 1 1 . 2 4 4 3 5 5 4 2 1 3 2 2 3 5 4 5 4 5 Tool/Special . | . . . . . . . . . . . . . . . . . . . . . Unused Backups 52 | . 3 . 12 . 5 . 3 1 2 . 3 . 3 1 2 . 4 . 3 10 Power 8 | . . . 4 . . . 2 . . . 1 . . . 1 . . . . . Propulsion 12 | . 3 . 2 . . . 1 . 1 . 1 . 1 . . . 1 . . 2 Utility 23 | . . . 6 . 2 . . 1 1 . 1 . 2 1 . . 2 . 1 6 Weapon 9 | . . . . . 3 . . . . . . . . . 1 . 1 . 2 2 Tool/Special . | . . . . . . . . . . . . . . . . . . . . . Average Slot Usage (%) 88 | . 98 100 98 100 86 99 97 99 91 83 80 100 92 84 82 80 84 77 76 73 Engine 6 | . 14 14 11 11 11 11 9 9 2 1 3 7 6 12 11 6 5 . . . Core 2 | . . . . . . . . . 5 5 3 . . . . . . 5 6 4 Reactor 1 | . . . . . . . . . . . . . . . 1 6 6 5 2 4 Treads 17 | . 22 12 30 33 33 33 27 27 26 11 . . 6 13 12 13 13 11 11 12 Leg 5 | . 4 15 1 . . . . . . 18 30 30 17 . . . . . . . Device 6 | . 8 . . . . . 6 5 8 5 7 3 8 13 6 7 10 6 11 8 Storage 8 | . 14 14 11 11 11 11 9 9 9 7 7 7 7 6 6 6 6 5 5 5 Hackware 3 | . . . . . . . . . . 1 3 10 5 . 9 11 8 11 8 13 Protection 7 | . 5 14 10 11 11 11 8 12 9 7 7 7 7 6 4 6 5 5 6 7 Energy Gun 1 | . . . . . . . 1 . . . . . . . . . 10 11 5 . Ballistic Gun 21 | . 26 28 32 33 15 32 33 35 29 20 12 23 28 20 13 . 7 5 5 6 Ballistic Cannon 1 | . . . . . . . . . . . . . . 4 5 6 1 . 3 4 Peak Build Rating 127 | 7 8 8 20 19 33 35 39 40 51 61 77 60 79 85 105 105 111 115 119 127 Average Rating 58 | 5 6 8 14 19 23 25 35 37 45 51 68 59 64 80 79 99 104 106 107 115 On Entrance 52 | . 7 8 8 19 19 33 27 37 37 51 51 60 60 79 79 101 97 105 114 118 Naked Turns . | . . . . . . . . . . . . . . . . . . . . . Heaviest Build 182 | 15 32 52 60 60 62 61 69 68 76 86 82 110 115 134 181 182 171 139 182 178 Greatest Support 170 | 40 40 20 63 63 63 63 63 60 60 80 80 77 150 150 150 150 150 135 135 170 Greatest Overweight (x) 7 | . 1 2 2 . . . 1 1 1 2 1 1 2 . 1 1 1 1 2 7 Average Overweight (x) . | . . 1 . . . . . 1 . . . . . . . 1 . 1 . . Largest Inventory Capacity 25 | 8 15 20 20 20 20 20 20 20 20 20 20 25 25 25 25 25 25 25 25 25 Average Capacity 21 | 7 11 15 20 20 20 20 20 20 20 20 20 21 25 25 25 25 25 25 25 24 Most Carried 25 | 7 10 13 20 20 20 20 20 20 20 20 20 25 25 25 25 25 25 25 25 25 Average Carried 20 | 5 7 10 19 20 19 19 19 19 19 19 19 20 24 24 24 24 24 24 24 23 Final Capacity 25 | 8 15 20 20 20 20 20 20 20 20 20 20 25 25 25 25 25 25 25 25 5 Final Carried 25 | 6 10 13 20 20 20 20 20 20 20 20 20 25 25 25 24 25 25 25 25 4 Class Distribution -------------------- 34% | Scavenger-Tank 23% | Bothacker-Tank 14% | Tank 13% | Mutant 7% | Botlord-Tank 3% | Scavenger-Skirmisher Dominant Class ---------------- Mutant | -10/Materials Mutant | -10/Mines Tank | -9/Materials Scavenger-Tank | -9/Mines Mutant | -9/Exiles Scavenger-Skirmisher | -8/Mines Scavenger-Tank | -8/Materials Tank | -8/Storage Scavenger-Tank | -8/Garrison Mutant | -7/Factory Tank | -7/Garrison Scavenger-Tank | -7/Factory Scavenger-Tank | -7/Garrison Scavenger-Tank | -6/Factory Bothacker-Tank | -6/Garrison Bothacker-Tank | -6/Factory Bothacker-Tank | -6/Garrison Bothacker-Tank | -5/Factory Botlord-Tank | -5/Garrison Botlord-Tank | -4/Factory Resources | -11 -10 -10 -9 -9 -9 -8 -8 -8 -8 -7 -7 -7 -7 -6 -6 -6 -6 -5 -5 -4 ----------- Run | Yrd Mat Min Mat Min Exi Min Mat Sto Gar Fac Gar Fac Gar Fac Gar Fac Gar Fac Gar Fac Matter Collected 13833 | 354 321 149 1404 18 28 149 836 860 1339 795 1651 286 1573 249 978 . 1161 . 1092 590 Remotely . | . . . . . . . . . . . . . . . . . . . . . Salvage Created 14276 | 173 477 . 972 90 95 160 1004 1103 2230 794 1521 299 1606 126 785 . 1069 . 1036 736 Parts 762 | 12 20 . 72 9 5 8 60 62 139 37 87 14 81 2 21 . 62 . 45 26 Haulers Intercepted 9 | . 2 . 2 . . . 3 2 . . . . . . . . . . . . Recyclers Shooed 7 | 1 . 1 1 . . . 1 1 . 1 . . . . . . . . . 1 Parts Field Recycled . | . . . . . . . . . . . . . . . . . . . . . Retrieved Matter . | . . . . . . . . . . . . . . . . . . . . . Parts Self-Destructed . | . . . . . . . . . . . . . . . . . . . . . Prevented . | . . . . . . . . . . . . . . . . . . . . . Kills | -11 -10 -10 -9 -9 -9 -8 -8 -8 -8 -7 -7 -7 -7 -6 -6 -6 -6 -5 -5 -4 ------- Run | Yrd Mat Min Mat Min Exi Min Mat Sto Gar Fac Gar Fac Gar Fac Gar Fac Gar Fac Gar Fac Combat Hostiles Destroyed 287 | . 9 . 17 3 2 6 16 20 56 14 38 4 21 2 21 . 25 . 21 12 Melee 2 | . . . . . . . . . 2 . . . . . . . . . . . Guns 253 | . 9 . 17 3 2 6 16 20 54 14 38 4 20 2 14 . 15 . 16 3 Cannons 22 | . . . . . . . . . . . . . . . 7 . 8 . 4 3 AOE 9 | . . . . . . . . . . . . . 1 . . . 2 . . 6 Classes Destroyed 22 | 2 2 . 7 . . 1 1 1 2 2 1 . 1 . 1 . 1 . . . Worker 11 | . . . 1 . . . 3 . . . . 1 . . . . . . . 6 Builder 3 | . . . . . . . 2 . . 1 . . . . . . . . . . Tunneler 6 | 5 . . 1 . . . . . . . . . . . . . . . . . Hauler 9 | . 2 . 2 . . . 3 2 . . . . . . . . . . . . Recycler 7 | 1 . . 1 . . . 1 . . 1 . 1 . . . . . . . 2 Mechanic 2 | . . . 1 . . . . . . . . . . . . . . . . 1 Operator 1 | . . . 1 . . . . . . . . . . . . . . . . . Watcher 11 | . . . 4 . . . 4 1 . . . 1 . . . . . . 1 . Swarmer 83 | . . . 8 3 . 4 6 3 11 . 18 1 7 . 3 . 7 . 8 4 Cutter 5 | . . . . . . . . . . . . . 2 . . . 3 . . . Saboteur 7 | . . . . . . . . . 7 . . . . . . . . . . . Grunt 89 | . 9 . 1 . 2 . 7 8 14 8 12 1 5 2 10 . 3 . 3 4 Brawler 5 | . . . . . . . . 1 1 1 1 . . . . . 1 . . . Duelist 15 | . . . 1 . . . . 1 6 1 1 . . . . . 3 . 1 1 Protector 2 | . . . . . . . . . . 1 . . . . . . 1 . . . Sentry 50 | . . . 7 . . . 1 6 13 1 2 2 4 . 4 . 2 . 6 2 Demolisher 1 | . . . . . . . . . . . . . . . . . 1 . . . Specialist 2 | . . . . . . . . . 2 . . . . . . . . . . . Hunter 10 | . . . . . . 2 2 1 2 . . . . . 2 . . . 1 . Programmer 16 | . . . . . . . . . . 2 3 . 3 . 1 . 5 . 2 . Heavy 3 | . . . . . . . . . . . 1 . 1 . . . . . . 1 Behemoth 2 | . . . . . . . . . . . . . . . 1 . . . 1 . Thug 1 | . . . . 1 . . . . . . . . . . . . . . . . Savage 1 | . . . . . . . . . . . . . . . . . 1 . . . Best Kill Streak 10 | 5 2 . 6 3 2 4 9 9 7 4 9 5 4 2 4 . 4 . 10 7 Combat Bots Only 10 | . 2 . 6 3 2 4 5 8 7 3 9 3 4 2 4 . 4 . 10 4 Max Kills in Single Turn 5 | 1 1 . 2 3 1 2 4 1 2 1 1 2 1 1 2 . 3 . 2 5 Gunslinging 1 | . . . 1 . . 1 1 . 1 . . . . . . . 1 . . . Exploded 2 | . . . . . . . . . . . . . 1 . . . 2 . . 2 Melee 1 | . . . . . . . . . 1 . . . . . . . . . . . Uniques/NPCs Destroyed . | . . . . . . . . . . . . . . . . . . . . . Combat | -11 -10 -10 -9 -9 -9 -8 -8 -8 -8 -7 -7 -7 -7 -6 -6 -6 -6 -5 -5 -4 -------- Run | Yrd Mat Min Mat Min Exi Min Mat Sto Gar Fac Gar Fac Gar Fac Gar Fac Gar Fac Gar Fac Hostile Shots Fired 1776 | . 69 . 119 6 9 20 71 55 117 157 74 38 152 22 223 . 124 . 234 286 Missed 500 | . 18 . 39 2 5 4 18 11 26 67 21 12 49 2 53 . 29 . 56 88 Hits 1276 | . 51 . 80 4 4 16 53 44 91 90 53 26 103 20 170 . 95 . 178 198 Melee 53 | . . . . . . . . 2 11 13 2 . 2 . . . 16 . 3 4 Projectile 1223 | . 51 . 80 4 4 16 53 42 80 77 51 26 101 20 170 . 79 . 175 194 AOE 23 | . . . . . . . . . . . . . 3 . . . 11 . . 9 Critical Strikes 55 | . 1 . 1 . . . 2 1 4 3 3 . 6 . 3 . 12 . 7 12 Part Disruptions 3 | . . . . . . . . . . 1 . . . . . . 1 . 1 . Damage Taken 21775 | . 688 . 844 34 56 230 630 512 1309 1455 863 331 1276 266 2603 . 1623 . 3813 5242 Core 2431 | . 60 . 59 . 11 36 89 48 33 173 37 . 156 . 205 . 174 . 181 1169 Absorbed by Shields 1618 | . . . . . . . 158 139 42 . . . 104 100 179 . 547 . 153 196 Reduced by Siege Mode 255 | . . . . . . . . . . . . . . . 150 . . . 105 . Ignored by Resistances 81 | . . . . . . . . 46 16 . . . . . . . . . 19 . Regen/Repaired (Parts) 85 | . . . . . . . . . . . . . . . . 85 . . . . Core Remaining (%) 71 | 100 . 76 . . . 73 . . 69 . . . 47 . . . 55 . 81 . Volleys Fired 1028 | 14 63 3 70 2 . 9 43 46 99 65 101 31 137 10 70 11 125 3 80 46 Largest 4 | 2 2 2 3 3 . 3 4 4 4 4 4 3 4 4 4 1 4 1 4 3 Hottest 328 | 40 40 40 69 69 . 69 107 106 106 120 80 60 80 108 183 90 268 10 328 136 Shots Fired 2522 | 28 119 6 198 6 9 31 163 184 323 152 133 76 383 40 161 11 240 3 168 88 Gun 2272 | 28 119 6 198 6 9 31 163 184 323 152 126 67 381 38 103 . 167 . 125 46 Cannon 164 | . . . . . . . . . . . . . . 2 57 1 55 . 26 23 Launcher 6 | . . . . . . . . . . . . . 1 . . . 1 . . 4 Special 80 | . . . . . . . . . . . 7 9 1 . 1 10 17 3 17 15 Kinetic 2212 | 28 119 6 198 6 9 31 163 184 323 152 126 67 381 40 155 . 86 . 69 69 Thermal 224 | . . . . . . . . . . . . . . . 5 1 136 . 82 . Explosive 6 | . . . . . . . . . . . . . 1 . . . 1 . . 4 Electromagnetic . | . . . . . . . . . . . . . . . . . . . . . Robot Hit Streak 37 | 7 10 9 11 1 4 4 13 14 15 7 37 9 25 4 26 6 22 1 21 8 Robot Miss Streak 14 | 2 4 . 3 1 1 3 5 3 3 8 7 9 14 3 6 1 10 4 3 4 Penetration Max 2 | . . . . . . . . . . . . . . . . . 2 . 1 1 Secondary Targets 45 | . . . 5 1 . 1 2 . 10 2 . . 11 1 3 . 6 . 3 . Max Gunslinging Chain 2 | . . . 2 1 . 1 1 . 2 1 . . 1 1 1 . 2 . 1 . Autonomous 86 | . . . . . 9 3 . . 72 2 . . . . . . . . . . Shots Hit Robots 1499 | 17 79 4 118 2 6 16 102 99 190 89 105 38 176 28 110 9 124 1 127 59 Core Hits 737 | 7 25 1 47 4 2 9 47 44 80 36 75 16 73 13 56 . 58 . 46 98 Critical Kills 9 | . . . . . . . 1 . . . . . . . . . 7 . 1 . Critical Parts Destroyed 21 | . . . . . . 1 2 2 2 1 . . . . . . 7 . 5 1 Critical Strikes 42 | . . . . . . 1 3 2 2 1 . . . 1 6 . 16 . 8 2 Burn 2 | . . . . . . . . . . . . . . . . . . . 2 . Destroy 31 | . . . . . . 1 3 2 2 1 . . . . . . 15 . 6 1 Blast 9 | . . . . . . . . . . . . . . 1 6 . 1 . . 1 Melee Attacks 18 | . . . . . . . . . 7 8 . . . . 3 . . . . . Impact . | . . . . . . . . . . . . . . . . . . . . . Slashing . | . . . . . . . . . . . . . . . . . . . . . Piercing . | . . . . . . . . . . . . . . . . . . . . . Sneak Attacks 12 | . . . . . . . . . 7 5 . . . . . . . . . . Combat Hostiles . | . . . . . . . . . . . . . . . . . . . . . Follow-up Attacks . | . . . . . . . . . . . . . . . . . . . . . Damage Inflicted 37512 | 217 989 49 1773 68 202 250 1860 1761 4035 1923 4173 735 3867 563 3294 . 3469 . 3840 4444 Guns 28703 | 217 989 49 1764 68 202 250 1766 1761 4035 1899 4173 735 3832 510 1704 . 1497 . 2305 947 Cannons 6033 | . . . . . . . . . . . . . . 53 1590 . 1582 . 1535 1273 Explosions 2762 | . . . . . . . 94 . . 24 . . 35 . . . 390 . . 2219 Melee . | . . . . . . . . . . . . . . . . . . . . . Ramming 14 | . . . 9 . . . . . . . . . . . . . . . . 5 Kinetic 30515 | 217 989 49 1764 68 202 250 1766 1761 4035 1899 4173 735 3832 563 3177 . 728 . 2087 2220 Thermal 4339 | . . . . . . . 94 . . 24 . . . . 117 . 2351 . 1753 . Explosive 2626 | . . . . . . . . . . . . . 35 . . . 390 . . 2201 Electromagnetic 18 | . . . . . . . . . . . . . . . . . . . . 18 Impact . | . . . . . . . . . . . . . . . . . . . . . Slashing . | . . . . . . . . . . . . . . . . . . . . . Piercing . | . . . . . . . . . . . . . . . . . . . . . Highest Corruption 12 | . 1 1 1 1 1 1 . . . . 1 1 4 . . . 2 . 1 12 Average Corruption 1 | . 1 1 1 1 1 1 . . . . 1 1 3 . . . 1 . 1 2 Corruption Purged . | . . . . . . . . . . . . . . . . . . . . . Corruption Blocked . | . . . . . . . . . . . . . . . . . . . . . Effects 133 | . 2 5 16 5 5 4 . . . . 14 1 38 . . . 33 . 5 5 Message Errors 25 | . 1 1 4 . 1 . . . . . 4 . 6 . . . 6 . 1 1 Matter Fused 42 | . 1 4 7 . 3 1 . . . . 2 . 12 . . . 8 . 3 1 Heat Flow Errors 18 | . . . 2 1 1 . . . . . 2 . 6 . . . 4 . . 2 Energy Discharges 13 | . . . 2 1 . . . . . . 1 . 6 . . . 3 . . . Parts Fused 1 | . . . . . . . . . . . 1 . . . . . . . . . Data Loss (minor) 19 | . . . 1 2 . 1 . . . . 2 . 5 . . . 7 . 1 . Data Loss (major) 6 | . . . . 1 . . . . . . 1 . 2 . . . 2 . . . Misfires 7 | . . . . . . 1 . . . . 1 1 1 . . . 2 . . 1 Alerts 1 | . . . . . . 1 . . . . . . . . . . . . . . Weapon Failures 1 | . . . . . . . . . . . . . . . . . 1 . . . Overload Shots 6 | . . . . . . . . . . . . . . . . 1 5 . . . Overflow Damage 575 | . . . . . . . . . . . . . . 2 32 . 180 . 87 274 Projectiles 534 | . . . . . . . . . . . . . . 2 32 . 180 . 87 233 Explosions 41 | . . . . . . . . . . . . . . . . . . . . 41 Melee . | . . . . . . . . . . . . . . . . . . . . . Knockbacks 20 | . . . . . . . . . . . . . . . 9 . 4 . 2 5 Impact . | . . . . . . . . . . . . . . . . . . . . . Kinetic 16 | . . . . . . . . . . . . . . . 8 . 4 . 1 3 Secondary 4 | . . . . . . . . . . . . . . . 1 . . . 1 2 Self-Inflicted Damage 329 | . . . . . . . 28 . . . . . 23 . . . 27 . . 251 Shots 11 | . . . . . . . 1 . . . . . 1 . . . 2 . . 7 Rammed 5 | . 1 . 2 . . . . . . . . . . . . . . . . 2 Targets Rammed 5 | . 1 . 2 . . . . . . . . . . . . . . . . 2 Kicked . | . . . . . . . . . . . . . . . . . . . . . Crushed . | . . . . . . . . . . . . . . . . . . . . . Highest Temperature 611 | . 20 . 193 218 193 41 406 452 446 611 169 152 265 214 547 2 446 . 554 453 Average Temperature 113 | . 3 . 19 79 176 19 94 127 127 166 49 47 75 110 120 1 138 . 178 210 Received Heat Transfer 5015 | . 408 . 249 . 6 . 260 138 396 483 90 84 140 78 880 . 90 . 1021 692 Effects 63 | . . . . . . . . 6 4 11 . . . 2 3 . 11 . 15 11 Shutdowns 18 | . . . . . . . . 1 . 3 . . . . 1 . 1 . 7 5 Energy Bleed 12 | . . . . . . . . 2 . 2 . . . . 1 . 2 . 3 2 Interference 19 | . . . . . . . . 3 4 . . . . 2 . . 6 . 2 2 Matter Decay 2 | . . . . . . . . . . 1 . . . . . . . . . 1 Short Circuit 6 | . . . . . . . . . . 2 . . . . . . 2 . 2 . Damage (minor) 4 | . . . . . . . . . . 2 . . . . . . . . 1 1 Damage (core) 2 | . . . . . . . . . . 1 . . . . 1 . . . . . Siege Activations 7 | . . . . . . . . . . . . . . . 1 . 2 . 4 . Total Turns 173 | . . . . . . . . . . . . . . . 41 . 7 . 125 . Longest Duration 69 | . . . . . . . . . . . . . . . 41 . 5 . 69 . Martial Activations . | . . . . . . . . . . . . . . . . . . . . . Shielding Activations . | . . . . . . . . . . . . . . . . . . . . . Robots Disrupted . | . . . . . . . . . . . . . . . . . . . . . Combat Hostiles . | . . . . . . . . . . . . . . . . . . . . . Robots Corrupted 1 | . . . . . . . . . . . . . . . . . . . . 1 Combat Hostiles . | . . . . . . . . . . . . . . . . . . . . . Parts Fried 2 | . . . . . . . . . . . . . . . . . . . . 2 Impact Corruptions 2 | . . . . . . . . . . . . . . . . . . . . 2 Robots Melted 1 | . . . . . . . . . . . . . . . . . . . 1 . Combat Hostiles 1 | . . . . . . . . . . . . . . . . . . . 1 . Parts Melted 15 | . . . . . . . . . . . . . . . 1 . 6 . 8 . Heat Transferred 5090 | . . . . . . . 100 . . 50 . . . . 111 . 2486 . 2343 . Parts Sabotaged 4 | . . . . . . . . . 4 . . . . . . . . . . . Parts Stolen . | . . . . . . . . . . . . . . . . . . . . . Parts Stripped . | . . . . . . . . . . . . . . . . . . . . . Power Chain Reactions . | . . . . . . . . . . . . . . . . . . . . . Alert | -11 -10 -10 -9 -9 -9 -8 -8 -8 -8 -7 -7 -7 -7 -6 -6 -6 -6 -5 -5 -4 ------- Run | Yrd Mat Min Mat Min Exi Min Mat Sto Gar Fac Gar Fac Gar Fac Gar Fac Gar Fac Gar Fac Maximum Alert Level 5 | . . . 1 . . . 1 1 5 4 5 4 5 4 5 3 5 4 5 4 Low Security (%) 24 | 100 100 100 77 100 . 100 55 59 . . . . . . . . . . . . Level 1 7 | . . . 22 . . . 44 40 6 . . . . . . . . . . . Level 2 4 | . . . . . . . . . 21 . . . . . . 4 13 . . . Level 3 14 | . . . . . . . . . 16 . 1 98 11 . 15 95 20 . 18 72 Level 4 25 | . . . . . . . . . 19 100 28 1 44 100 52 . 19 100 34 27 Level 5 23 | . . . . . . . . . 35 . 70 . 43 . 32 . 45 . 46 . High Security . | . . . . . . . . . . . . . . . . . . . . . Max Security . | . . . . . . . . . . . . . . . . . . . . . Peak Influence 3005 | 20 71 56 255 99 . 90 298 381 3005 1577 2163 1101 2384 1291 1742 914 2286 1199 2167 1325 Initial 1577 | . 3 . 5 87 . . 23 96 241 1577 1087 1087 763 1251 876 914 480 1199 797 1137 Average 1000 | 4 17 4 129 35 . 24 129 189 1394 1444 1739 1053 1600 1248 1384 803 1364 1171 1477 1076 Influence Increases 15522 | 30 295 56 888 92 272 152 628 650 2894 634 1280 258 1661 201 1086 5 1906 . 1620 914 Destroy 0b10 Robot/C 7580 | . 180 40 540 80 260 120 320 400 1160 360 800 140 740 120 520 . 680 . 720 400 Destroy 0b10 Robot/NC 350 | 30 10 . 60 . . . 65 15 . 20 5 30 30 . 5 . 10 . 5 65 Destroy Leader 938 | . 54 10 172 10 . 30 84 126 40 72 40 36 50 20 30 . 50 . 50 64 Allied During Kill 698 | . . 6 21 2 12 . . . 129 31 5 18 164 58 74 . 53 . 58 67 Successful Hack 252 | . 20 . 47 . . . 13 28 14 . 28 14 35 . 28 4 21 . . . Disable Machine 435 | . . . 30 . . . 105 60 15 60 60 15 . . . . . . . 90 Anti-Garrison Action 3800 | . . . . . . . . . 1350 . 300 . 450 . 350 . 650 . 700 . Destroy Structure 809 | . 1 . 3 . . 2 41 6 156 31 12 5 177 3 64 1 142 . 27 138 Partial Spotted 30 | . . . 15 . . . . . . . . . 15 . . . . . . . Lose Combat Pursuer 630 | . 30 . . . . . . 15 30 60 30 . . . 15 . 300 . 60 90 Influence Decreases 14197 | 25 300 40 678 318 56 308 458 508 261 2086 761 1239 368 1333 596 1060 307 1147 592 1756 Entered New Map 8880 | . 2 . 11 139 . 216 37 134 131 1428 466 985 328 1133 376 828 207 1087 342 1030 Time Decay 3657 | 25 278 40 622 179 56 92 421 374 . 538 . 214 . 150 . 222 . 60 . 386 Lost Part 650 | . 20 . 20 . . . . . 50 40 10 . 40 10 100 . 10 . 130 220 Lost Ally 735 | . . . 25 . . . . . 80 80 10 40 . 40 120 10 90 . 120 120 Purge Threat 275 | . . . . . . . . . . . 275 . . . . . . . . . Squads Dispatched 32 | . 2 . 4 . . . 2 7 . 7 . 3 . . . 1 . . . 6 Investigation 6 | . 1 . 2 . . . 1 1 . 1 . . . . . . . . . . Extermination 5 | . . . . . . . . . . 2 . 1 . . . 1 . . . 1 Reinforcement 11 | . 1 . 2 . . . 1 3 . 1 . . . . . . . . . 3 Assault 6 | . . . . . . . . . . 3 . 1 . . . . . . . 2 Garrison 4 | . . . . . . . . 3 . . . 1 . . . . . . . . Intercept . | . . . . . . . . . . . . . . . . . . . . . Searches Triggered . | . . . . . . . . . . . . . . . . . . . . . Construction Impeded 1 | . . . . . . . . . . . . . . . . . . . . 1 Haulers Reinforced . | . . . . . . . . . . . . . . . . . . . . . Active Scanning Responses . | . . . . . . . . . . . . . . . . . . . . . Cargo Convoy Interrupts . | . . . . . . . . . . . . . . . . . . . . . Stealth | -11 -10 -10 -9 -9 -9 -8 -8 -8 -8 -7 -7 -7 -7 -6 -6 -6 -6 -5 -5 -4 --------- Run | Yrd Mat Min Mat Min Exi Min Mat Sto Gar Fac Gar Fac Gar Fac Gar Fac Gar Fac Gar Fac Distress Signals 14 | . . . 2 . . . 1 2 . 3 . 1 . . . . . . 1 4 Communications Jammed . | . . . . . . . . . . . . . . . . . . . . . Distress Signals . | . . . . . . . . . . . . . . . . . . . . . Times Spotted 494 | . 19 2 41 4 7 6 25 27 52 34 42 13 36 6 29 2 56 . 47 46 Peak Tracking Total 12 | . 4 2 6 4 3 4 4 5 8 9 4 4 5 4 4 1 8 . 9 12 Tactical Retreats 33 | . 1 . . . . . . 1 2 3 2 . . . 1 . 15 . 3 5 Traps | -11 -10 -10 -9 -9 -9 -8 -8 -8 -8 -7 -7 -7 -7 -6 -6 -6 -6 -5 -5 -4 ------- Run | Yrd Mat Min Mat Min Exi Min Mat Sto Gar Fac Gar Fac Gar Fac Gar Fac Gar Fac Gar Fac Traps Triggered 44 | . 2 . 2 . . . 1 1 9 . 5 1 4 . 2 . 4 . 10 3 Indirectly . | . . . . . . . . . . . . . . . . . . . . . Trap Hack Attempts . | . . . . . . . . . . . . . . . . . . . . . Triggered . | . . . . . . . . . . . . . . . . . . . . . Disarmed . | . . . . . . . . . . . . . . . . . . . . . Reprogrammed . | . . . . . . . . . . . . . . . . . . . . . Reused . | . . . . . . . . . . . . . . . . . . . . . Traps Extracted . | . . . . . . . . . . . . . . . . . . . . . Installed . | . . . . . . . . . . . . . . . . . . . . . Triggered . | . . . . . . . . . . . . . . . . . . . . . Machines | -11 -10 -10 -9 -9 -9 -8 -8 -8 -8 -7 -7 -7 -7 -6 -6 -6 -6 -5 -5 -4 ---------- Run | Yrd Mat Min Mat Min Exi Min Mat Sto Gar Fac Gar Fac Gar Fac Gar Fac Gar Fac Gar Fac Machines Disabled 56 | . . . 2 . 2 . 7 4 5 4 7 1 4 . 5 . 5 . 4 6 Max in Single Turn 4 | . . . 1 . 1 . 1 1 1 4 2 1 1 . 1 . 1 . 1 3 Garrison Relay 20 | . . . . . . . . . 2 . 2 . 4 . 4 . 4 . 4 . Phase Generator 3 | . . . . . . . . . 1 . 1 . . . 1 . . . . . Machines Repaired . | . . . . . . . . . . . . . . . . . . . . . Machines Dismantled 6 | . . . 1 . . . . 1 2 . 1 . . . 1 . . . . . Machines Sabotaged . | . . . . . . . . . . . . . . . . . . . . . Overloaded Fab Kills . | . . . . . . . . . . . . . . . . . . . . . Hacking | -11 -10 -10 -9 -9 -9 -8 -8 -8 -8 -7 -7 -7 -7 -6 -6 -6 -6 -5 -5 -4 --------- Run | Yrd Mat Min Mat Min Exi Min Mat Sto Gar Fac Gar Fac Gar Fac Gar Fac Gar Fac Gar Fac Machines Accessed 50 | . 6 . 8 . 2 . 2 5 3 2 3 2 4 2 2 2 3 2 2 . Terminals 39 | . 6 . 8 . . . 2 4 3 . 3 1 4 . 2 1 3 . 2 . Fabricators 3 | . . . . . . . . . . 1 . . . 1 . . . 1 . . Repair Stations . | . . . . . . . . . . . . . . . . . . . . . Recycling Units . | . . . . . . . . . . . . . . . . . . . . . Scanalyzers . | . . . . . . . . . . . . . . . . . . . . . Garrison Access 6 | . . . . . . . . 1 . 1 . 1 . 1 . 1 . 1 . . Total Hacks 100 | . 16 . 24 . 3 . 7 10 4 4 5 2 6 3 2 3 5 2 4 . Successful 53 | . 8 . 11 . 3 . 5 5 1 3 2 2 3 2 2 2 2 2 . . Failed 47 | . 8 . 13 . . . 2 5 3 1 3 . 3 1 . 1 3 . 4 . Catastrophic 7 | . . . 1 . . . . 2 . . 1 . . . . . 1 . 2 . Database Lockouts . | . . . . . . . . . . . . . . . . . . . . . Manual 45 | . 14 . 21 . 1 . 7 2 . . . . . . . . . . . . Terminals 83 | . 16 . 24 . . . 7 7 4 . 5 1 6 . 2 2 5 . 4 . Fabricators 5 | . . . . . . . . . . 2 . . . 2 . . . 1 . . Repair Stations . | . . . . . . . . . . . . . . . . . . . . . Recycling Units . | . . . . . . . . . . . . . . . . . . . . . Scanalyzers . | . . . . . . . . . . . . . . . . . . . . . Garrison Access 9 | . . . . . . . . 3 . 2 . 1 . 1 . 1 . 1 . . Terminal Hacks 23 | . 2 . 2 . 3 . 1 3 1 . 2 1 3 . 2 1 2 . . . Record 2 | . . . . . 2 . . . . . . . . . . . . . . . Open Door 3 | . . . . . . . . 1 . . . . 1 . . . 1 . . . Branch Access Points 1 | . . . . . . . 1 . . . . . . . . . . . . . Emergency Access Points 5 | . . . . . . . . . 1 . 1 . 1 . 1 . 1 . . . Locate Traps 2 | . 1 . . . . . . 1 . . . . . . . . . . . . Assault Status 1 | . . . 1 . . . . . . . . . . . . . . . . . Zone Layout 5 | . 1 . 1 . . . . 1 . . . 1 . . . 1 . . . . Patrol Navigation 3 | . . . . . . . . . . . 1 . 1 . 1 . . . . . Proto ID Catalog 1 | . . . . . 1 . . . . . . . . . . . . . . . Fabricator Hacks 3 | . . . . . . . . . . 1 . . . 1 . . . 1 . . Network Status 3 | . . . . . . . . . . 1 . . . 1 . . . 1 . . Repair Station Hacks . | . . . . . . . . . . . . . . . . . . . . . Recycling Unit Hacks . | . . . . . . . . . . . . . . . . . . . . . Scanalyzer . | . . . . . . . . . . . . . . . . . . . . . Garrison Access Hacks 7 | . . . . . . . . 1 . 2 . 1 . 1 . 1 . 1 . . Unlock Access 6 | . . . . . . . . 1 . 1 . 1 . 1 . 1 . 1 . . Coupler Status 1 | . . . . . . . . . . 1 . . . . . . . . . . Unauthorized Hacks 20 | . 6 . 9 . . . 4 1 . . . . . . . . . . . . Terminals 20 | . 6 . 9 . . . 4 1 . . . . . . . . . . . . Assimilate 3 | . . . 2 . . . 1 . . . . . . . . . . . . . Botnet 8 | . 3 . 2 . . . 2 1 . . . . . . . . . . . . Skim 9 | . 3 . 5 . . . 1 . . . . . . . . . . . . . Fabricators . | . . . . . . . . . . . . . . . . . . . . . Repair Stations . | . . . . . . . . . . . . . . . . . . . . . Recycling Units . | . . . . . . . . . . . . . . . . . . . . . Scanalyzers . | . . . . . . . . . . . . . . . . . . . . . Garrison Access . | . . . . . . . . . . . . . . . . . . . . . Data Cores Recovered . | . . . . . . . . . . . . . . . . . . . . . Used . | . . . . . . . . . . . . . . . . . . . . . Hacking Detections 34 | . 5 . 7 . . . 2 5 2 1 2 . 2 2 . 1 2 1 2 . Full Trace Events 10 | . 1 . 2 . . . . 2 . . 1 . 1 . . . 1 . 2 . Feedback Events 1 | . . . 1 . . . . . . . . . . . . . . . . . Corruption 1 | . . . 1 . . . . . . . . . . . . . . . . . Feedback Blocked . | . . . . . . . . . . . . . . . . . . . . . Robot Schematics Acquired . | . . . . . . . . . . . . . . . . . . . . . Robots Built . | . . . . . . . . . . . . . . . . . . . . . Authchips . | . . . . . . . . . . . . . . . . . . . . . Time . | . . . . . . . . . . . . . . . . . . . . . Total Robot Build Rating . | . . . . . . . . . . . . . . . . . . . . . Part Schematics Acquired . | . . . . . . . . . . . . . . . . . . . . . Parts Built . | . . . . . . . . . . . . . . . . . . . . . Authchips . | . . . . . . . . . . . . . . . . . . . . . Time . | . . . . . . . . . . . . . . . . . . . . . Total Part Build Rating . | . . . . . . . . . . . . . . . . . . . . . Parts Repaired . | . . . . . . . . . . . . . . . . . . . . . Time . | . . . . . . . . . . . . . . . . . . . . . Parts Recycled . | . . . . . . . . . . . . . . . . . . . . . Recycled Matter . | . . . . . . . . . . . . . . . . . . . . . Retrieved Matter . | . . . . . . . . . . . . . . . . . . . . . Retrieved Components . | . . . . . . . . . . . . . . . . . . . . . Parts Scanalyzed . | . . . . . . . . . . . . . . . . . . . . . Part Schematics Acquired . | . . . . . . . . . . . . . . . . . . . . . Parts Damaged . | . . . . . . . . . . . . . . . . . . . . . Bothacking | -11 -10 -10 -9 -9 -9 -8 -8 -8 -8 -7 -7 -7 -7 -6 -6 -6 -6 -5 -5 -4 ------------ Run | Yrd Mat Min Mat Min Exi Min Mat Sto Gar Fac Gar Fac Gar Fac Gar Fac Gar Fac Gar Fac Used RIF Installer 6 | . . . . . . . . . 1 . 1 . 1 . 1 . 1 . 1 . Coupler Efficiency 1 | . . . . . . . . . . . . . . . . . . . 1 . Hotswap 1 | . . . . . . . . . . . 1 . . . . . . . . . Code Merge 1 | . . . . . . . . . . . . . . . 1 . . . . . Zone Cloak 1 | . . . . . . . . . . . . . 1 . . . . . . . Structural Interface 1 | . . . . . . . . . . . . . . . . . 1 . . . Robots Hacked 44 | . . . . . . . . . . 6 2 3 1 . 3 5 4 . 9 11 Non-combat 15 | . . . . . . . . . . 5 1 1 . . . 5 . . . 3 Combat 29 | . . . . . . . . . . 1 1 2 1 . 3 . 4 . 9 8 Robot Hacks Applied 54 | . . . . . . . . . . 7 5 4 1 . 3 7 4 1 9 13 parse_system 4 | . . . . . . . . . . . 1 . . . . 2 . 1 . . no_distress 1 | . . . . . . . . . . . . . . . . 1 . . . . find_chute 3 | . . . . . . . . . . 3 . . . . . . . . . . drop_inventory 2 | . . . . . . . . . . . . . . . . 1 . . . 1 find_recycling 3 | . . . . . . . . . . 1 . 1 . . . 1 . . . . ignore_parts 1 | . . . . . . . . . . . . . . . . . . . . 1 purge_threat 2 | . . . . . . . . . . . 2 . . . . . . . . . block_reporting 1 | . . . . . . . . . . . . . . . . . . . . 1 mark_security 1 | . . . . . . . . . . 1 . . . . . . . . . . find_shortcuts 1 | . . . . . . . . . . . . . 1 . . . . . . . find_garrison 3 | . . . . . . . . . . 1 . 1 . . . . . . . 1 overwrite_iff 6 | . . . . . . . . . . . . 1 . . . . . . 2 3 streamctrl_high 1 | . . . . . . . . . . . . . . . . . . . 1 . formatsys_low 2 | . . . . . . . . . . . 1 . . . . 1 . . . . formatsys_high 23 | . . . . . . . . . . 1 1 1 . . 3 1 4 . 6 6 Relay Couplers Released 84 | . . . . . . . . . 9 . 8 . 17 . 17 . 16 . 17 . Machine Destruction 81 | . . . . . . . . . 9 . 8 . 17 . 14 . 16 . 17 . Programmers 3 | . . . . . . . . . . . . . . . 3 . . . . . Attached 16 | . . . . . . . . . . 2 3 1 1 . 2 1 1 . 4 1 Merged Code Value 63 | . . . . . . . . . . . . . . . 30 . 26 . 7 . Fabnet Peak Effective % . | . . . . . . . . . . . . . . . . . . . . . Robots Rewired 12 | . . . . . . . . . 6 . . . 3 . . . 3 . . . Allies Hacked . | . . . . . . . . . . . . . . . . . . . . . Hacks Repelled . | . . . . . . . . . . . . . . . . . . . . . Allies | -11 -10 -10 -9 -9 -9 -8 -8 -8 -8 -7 -7 -7 -7 -6 -6 -6 -6 -5 -5 -4 -------- Run | Yrd Mat Min Mat Min Exi Min Mat Sto Gar Fac Gar Fac Gar Fac Gar Fac Gar Fac Gar Fac Total Allies 51 | . . 2 . 1 . . . . 8 1 2 2 6 . 3 2 7 . 9 8 Largest Group 8 | . . 2 2 1 . . . . 8 4 2 3 6 6 4 3 3 1 4 4 Highest-Rated Group 231 | . . 47 47 31 . . . . 130 67 116 122 231 231 207 62 118 29 192 217 Highest-Rated Ally 95 | . . 31 31 31 . . . . 39 39 90 90 95 95 95 29 51 29 49 58 Total Orders 1 | . . . . . . . . . . . . . . . . 1 . . . . AID 1 | . . . . . . . . . . . . . . . . 1 . . . . Ally Attacks 488 | . . 8 47 2 26 . . . 21 24 10 24 41 26 51 1 74 . 75 58 Total Damage 12834 | . . 107 548 41 1322 . . . 176 414 472 624 1501 391 1235 . 1604 . 2660 1739 Kills 106 | . . 2 11 1 11 . . . 2 7 2 6 16 4 5 . 12 . 15 12 Allies Corrupted . | . . . . . . . . . . . . . . . . . . . . . Allies Melted . | . . . . . . . . . . . . . . . . . . . . . Turrets Deployed 2 | . . . . . 1 . . . . . . . . . . . . . 1 . Intel | -11 -10 -10 -9 -9 -9 -8 -8 -8 -8 -7 -7 -7 -7 -6 -6 -6 -6 -5 -5 -4 ------- Run | Yrd Mat Min Mat Min Exi Min Mat Sto Gar Fac Gar Fac Gar Fac Gar Fac Gar Fac Gar Fac Active Infowar (turns) 862 | 25 708 . . . . . . . 12 115 2 . . . . . . . . . Structural 129 | . . . . . . . . . 12 115 2 . . . . . . . . . Seismic 733 | 25 708 . . . . . . . . . . . . . . . . . . . Robot Analysis Total . | . . . . . . . . . . . . . . . . . . . . . Derelict Logs Recovered 3 | . . 1 . 2 . . . . . . . . . . . . . . . . Drone Launches . | . . . . . . . . . . . . . . . . . . . . . Drone Recoveries . | . . . . . . . . . . . . . . . . . . . . . Exploration | -11 -10 -10 -9 -9 -9 -8 -8 -8 -8 -7 -7 -7 -7 -6 -6 -6 -6 -5 -5 -4 ------------- Run | Yrd Mat Min Mat Min Exi Min Mat Sto Gar Fac Gar Fac Gar Fac Gar Fac Gar Fac Gar Fac Turns Passed 25743 | 135 1186 781 2228 508 661 385 1754 864 3475 1523 1493 458 1975 318 1787 461 2318 126 2390 917 Spaces Moved 10877 | 59 499 303 1130 312 402 217 585 266 1258 630 913 278 850 171 852 158 813 48 792 341 Core 21 | 17 . . . . . . . . . . . . . . . . . . . 4 Treads 8794 | 42 499 284 1089 312 402 217 585 266 1258 239 . . 438 171 852 158 813 48 792 329 Legs 2054 | . . 19 41 . . . . . . 391 913 278 412 . . . . . . . Wheels 8 | . . . . . . . . . . . . . . . . . . . . 8 Hover . | . . . . . . . . . . . . . . . . . . . . . Flight . | . . . . . . . . . . . . . . . . . . . . . Fastest Speed 50 | 50 160 240 160 160 160 160 160 240 160 130 125 125 160 160 160 240 160 245 165 150 Average Speed 196 | 128 186 247 165 160 160 160 234 240 239 188 133 142 188 160 174 240 229 245 251 211 Slowest Speed 360 | 160 240 320 260 160 160 160 240 240 240 270 200 197 263 160 240 240 245 245 360 260 Overloaded Moves . | . . . . . . . . . . . . . . . . . . . . . Propulsion Burnouts . | . . . . . . . . . . . . . . . . . . . . . Robots Hopped . | . . . . . . . . . . . . . . . . . . . . . Potential Cave-ins 1 | . . . . . . . . . . . . . . . . . . . . 1 Cave-ins Triggered . | . . . . . . . . . . . . . . . . . . . . . Exploration Rate (%) 54 | 4 90 85 84 72 61 57 46 35 95 17 97 10 96 4 93 5 92 1 92 14 Regions Visited 20 Branch Regions 5 Pre-discovered Areas 3 | . . . 2 . 1 . . . . . . . . . . . . . . . Known Exits Taken 9 | . . . 1 . . 1 1 1 . 1 . 1 . 1 . 1 . 1 . . Unknown Exits Taken 5 | 1 1 1 . 1 1 . . . . . . . . . . . . . . . Scrap Searched 4 | . . 1 . 2 . 1 . . . . . . . . . . . . . . Spaces Dug 44 | . . . . . . . . . . 36 . . . . . 1 5 . . 2 Terrain Destroyed 246 | . . . . . 1 2 39 . 7 36 . . 42 . 7 1 19 . 5 87 Melee . | . . . . . . . . . . . . . . . . . . . . . Projectile 52 | . . . . . 1 2 . . 7 . . . . . 7 1 12 . 5 17 AOE 194 | . . . . . . . 39 . . 36 . . 42 . . . 7 . . 70 Terrain Rammed . | . . . . . . . . . . . . . . . . . . . . . Walls Destroyed . | . . . . . . . . . . . . . . . . . . . . . Machines Disabled . | . . . . . . . . . . . . . . . . . . . . . Actions | -11 -10 -10 -9 -9 -9 -8 -8 -8 -8 -7 -7 -7 -7 -6 -6 -6 -6 -5 -5 -4 --------- Run | Yrd Mat Min Mat Min Exi Min Mat Sto Gar Fac Gar Fac Gar Fac Gar Fac Gar Fac Gar Fac Total 13759 | 88 638 328 1339 316 424 236 862 406 1550 850 1157 319 1145 207 1005 237 1081 55 1070 446 Wait 902 | . 50 18 34 . 2 3 182 56 77 102 49 . 37 2 23 61 81 . 102 23 Move 10862 | 58 498 302 1129 311 401 216 584 266 1257 630 912 278 849 171 851 158 811 48 791 341 Hop . | . . . . . . . . . . . . . . . . . . . . . Pick Up 224 | 9 13 3 34 1 6 2 8 3 13 13 21 5 22 5 15 2 15 1 24 9 Fast Attach 76 | 4 . . 9 . 1 . 13 4 6 2 2 . 9 5 1 . 6 1 13 . Attach 107 | 3 4 . 7 . 1 3 2 . 6 9 9 . 16 3 10 . 5 1 14 14 Detach 3 | . . . . . . . . . . . 1 . . . 1 . . . . 1 Swap 143 | . 3 2 16 1 2 1 8 10 24 11 11 3 6 3 13 3 11 1 9 5 Drop 228 | . 6 . 34 1 11 2 22 13 21 9 17 2 32 8 6 1 15 . 23 5 Fire 1028 | 14 63 3 70 2 . 9 43 46 99 65 101 31 137 10 70 11 125 3 80 46 Melee 18 | . . . . . . . . . 7 8 . . . . 3 . . . . . Ram 2 | . . . . . . . . . . . . . . . . . . . . 2 Kick . | . . . . . . . . . . . . . . . . . . . . . Crush 3 | . 1 . 2 . . . . . . . . . . . . . . . . . Escape Stasis 63 | . . . . . . . . . 8 . 25 . 10 . . . 6 . 14 . Rewire 53 | . . . . . . . . . 15 1 . . 27 . 3 1 6 . . . Trap . | . . . . . . . . . . . . . . . . . . . . . Miscellaneous 47 | . . . 4 . . . . 8 17 . 9 . . . 9 . . . . . Route ------- -11/Scrapyard -10/Materials (discovered 4 exits: *Mat x2 / [*Min x2]) -10/Mines (discovered 2 exits: *Mat x2) -9/Materials (discovered 5 exits: *Mat x3 / *Min x2) -9/Mines (discovered 4 exits: *Mat x2 / *Exi / [*Zio]) -9/Exiles -8/Mines -8/Materials (discovered 3 exits: *Fac x2 / *Sto) -8/Storage (discovered 2 exits: Fac / Gar) -8/Garrison (discovered 3 exits: *Fac x3) -7/Factory -7/Garrison (discovered 4 exits: *Fac x4) -7/Factory -7/Garrison (discovered 4 exits: *Fac x3 / [*Fac]) -6/Factory -6/Garrison (discovered 3 exits: *Fac x3) -6/Factory (discovered 2 exits: *Fac / Gar) -6/Garrison (discovered 3 exits: *Fac x3) -5/Factory -5/Garrison (discovered 3 exits: [*Fac x3]) -4/Factory (discovered 2 exits: [*Res] / [*Upp]) History --------- Turn | Location | Event 11 | -11/Scrapyard | Discovered new exit (range 15) 136 | -11/Scrapyard | Entered Materials 308 | -10/Materials | Build established: Mutant 319 | -10/Materials | Discovered new exit (range 7) 463 | -10/Materials | Discovered new exit (range 16) 463 | -10/Materials | Discovered new exit (range 20) 977 | -10/Materials | Discovered new exit (range 14) 1322 | -10/Materials | Entered Mines 1324 | -10/Mines | Met a Derelict bent on vengeance 1339 | -10/Mines | Learned location of 1 exit from Materials 1450 | -10/Mines | Discovered new exit (range 10) 2041 | -10/Mines | Discovered new exit (range 10) 2103 | -10/Mines | Entered Materials 2103 | -9/Materials | Accompanied by 2 allies 2103 | -9/Materials | Evolved 2 slots: Propulsion x1, Weapon x1 2104 | -9/Materials | Identified exit to Materials 2108 | -9/Materials | Led the pair of lost Derelicts to an unsafe place 2503 | -9/Materials | Discovered exit to Materials (range 15) 2522 | -9/Materials | Build established: Tank 2829 | -9/Materials | Discovered new exit (range 10) 3130 | -9/Materials | Discovered new exit (range 4) 3309 | -9/Materials | Identified exit to Mines 3810 | -9/Materials | Learned Storage stockpile data 3868 | -9/Materials | Discovered exit to Materials (range 8) 3934 | -9/Materials | Learned Storage emergency access door positions 3957 | -9/Materials | Learned 4 Recycling zone layouts 4028 | -9/Materials | Learned Recycling recycling unit intel 4074 | -9/Materials | Learned location of 1 exit from Storage 4319 | -9/Materials | Build established: Scavenger-Tank 4331 | -9/Materials | Entered Mines 4334 | -9/Mines | Received a Mining Laser from a helpful Derelict 4342 | -9/Mines | A Derelict revealed a hidden shortcut to a safe place 4381 | -9/Mines | Learned 4 Materials zone layouts 4472 | -9/Mines | A weapon hastily lodged in a ceiling crevice suddenly fell to the ground 4643 | -9/Mines | YI-UF0 nonchalantly dropped a Grenade Launcher on the ground 4706 | -9/Mines | Learned location of 1 exit from Materials 4779 | -9/Mines | Discovered exit to Materials (range 10) 4808 | -9/Mines | Discovered exit to Materials (range 5) 4832 | -9/Mines | Deemed a non-threat by the Exiles lab entrance 4832 | -9/Mines | Discovered new exit (range 5) 4839 | -9/Mines | Entered Exiles 4879 | -9/Exiles | Met 8R-AWN 4907 | -9/Exiles | Met EX-HEX 4966 | -9/Exiles | Met EX-DEC 4977 | -9/Exiles | Learned location of Zion (-7) 5087 | -9/Exiles | Met EX-BIN 5110 | -9/Exiles | Aligned with FarCom system 5111 | -9/Exiles | Given EX-Vault access code 5148 | -9/Exiles | Opened EX-Vault 5159 | -9/Exiles | Found AWS/Gauss 5170 | -9/Exiles | Found Deploy-a-Sentry 5201 | -9/Exiles | Warned to stay clear of 0b10 Research branches 5217 | -9/Exiles | Exiles lab attacked by MAIN.C 5316 | -9/Exiles | Found Deploy-a-Sentry 5318 | -9/Exiles | Found Deploy-a-Sentry 5329 | -9/Exiles | Found XL Autogun Array 5350 | -9/Exiles | Build established: Mutant 5378 | -9/Exiles | DAS Turret deployed 5480 | -9/Exiles | Discovered new exit (range 14) 5500 | -9/Exiles | Stole three prototypes: AWS/Gauss, XL Autogun Array, Deploy-a-Sentry 5500 | -9/Exiles | Entered Mines 5793 | -8/Mines | Build established: Scavenger-Skirmisher 5863 | -8/Mines | Discovered exit to Materials (range 8) 5885 | -8/Mines | Entered Materials 5885 | -8/Materials | Evolved 2 slots: Utility x1, Weapon x1 5886 | -8/Materials | Identified exit to Factory 5887 | -8/Materials | Discovered new exit (range 14) 6722 | -8/Materials | Build established: Scavenger-Tank 7514 | -8/Materials | Identified exit to Storage 7543 | -8/Materials | Build established: Tank 7639 | -8/Materials | Entered Storage 7641 | -8/Storage | FarCom data flow suspended 7919 | -8/Storage | Found Prototype Launcher 7920 | -8/Storage | Identified Scatter Rocket Array 8135 | -8/Storage | Garrison activated, responded to threat 8209 | -8/Storage | Destroyed 8 combat bots 8503 | -8/Storage | Identified exit to Garrison 8503 | -8/Storage | Entered Garrison 8536 | -8/Garrison | Build established: Scavenger-Tank 8662 | -8/Garrison | Triggered checkpoint 8714 | -8/Garrison | Triggered checkpoint 8742 | -8/Garrison | Destroyed 7 combat bots 9044 | -8/Garrison | Discovered exit to Factory (range 10) 9476 | -8/Garrison | Triggered checkpoint 9592 | -8/Garrison | Garrison Relay disabled 9611 | -8/Garrison | Garrison Relay disabled 9789 | -8/Garrison | Triggered checkpoint 9931 | -8/Garrison | Discovered exit to Factory (range 16) 10001 | -8/Garrison | Triggered checkpoint 10469 | -8/Garrison | Triggered checkpoint 10563 | -8/Garrison | Triggered checkpoint 10735 | -8/Garrison | Phase Generator disabled 10808 | -8/Garrison | Rescued a captive Derelict 10808 | -8/Garrison | Rescued a captive Derelict 10827 | -8/Garrison | Discovered exit to Factory (range 3) 11047 | -8/Garrison | Triggered checkpoint 11157 | -8/Garrison | Triggered checkpoint 11181 | -8/Garrison | Triggered checkpoint 11527 | -8/Garrison | Build established: Commander-Tank 11640 | -8/Garrison | Lost 4 allies 11693 | -8/Garrison | Installed Relay Interface Framework 11978 | -8/Garrison | Entered Factory 11978 | -7/Factory | Accompanied by 4 allies 11978 | -7/Factory | Evolved 2 slots: Propulsion x1, Utility x1 11986 | -7/Factory | Build established: Scavenger-Tank 12286 | -7/Factory | AWS/Gauss suddenly broke down 12778 | -7/Factory | First assault squad dispatched 12869 | -7/Factory | Build established: Tank 13198 | -7/Factory | Build established: Mutant 13501 | -7/Factory | Identified exit to Garrison 13501 | -7/Factory | Entered Garrison 13553 | -7/Garrison | Triggered checkpoint 13672 | -7/Garrison | Phase Generator disabled 13860 | -7/Garrison | Heavy support dispatched to Factory 13912 | -7/Garrison | Triggered checkpoint 13912 | -7/Garrison | Triggered checkpoint 13968 | -7/Garrison | Destroyed 9 combat bots 13978 | -7/Garrison | Build established: Tank 13983 | -7/Garrison | Triggered checkpoint 14034 | -7/Garrison | Garrison Relay disabled 14051 | -7/Garrison | Heavy support dispatched to Factory 14102 | -7/Garrison | Discovered new exit (range 9) 14155 | -7/Garrison | Triggered checkpoint 14249 | -7/Garrison | Triggered checkpoint 14262 | -7/Garrison | Discovered new exit (range 10) 14278 | -7/Garrison | Expanded RIF knowledge: Hotswap 14351 | -7/Garrison | Triggered checkpoint 14385 | -7/Garrison | Heavy support dispatched to Factory 14385 | -7/Garrison | Discovered new exit (range 5) 14505 | -7/Garrison | Garrison Relay disabled 14519 | -7/Garrison | Triggered checkpoint 14683 | -7/Garrison | Heavy support dispatched to Factory 14703 | -7/Garrison | Discovered new exit (range 15) 14941 | -7/Garrison | Heavy support dispatched to Factory 14994 | -7/Garrison | Entered Factory 14994 | -7/Factory | Accompanied by 1 ally 15226 | -7/Factory | Build established: Scavenger-Tank 15386 | -7/Factory | Garrison activated, responded to threat 15394 | -7/Factory | First assault squad dispatched 15452 | -7/Factory | Identified exit to Garrison 15452 | -7/Factory | Entered Garrison 15452 | -7/Garrison | Accompanied by 1 ally 15766 | -7/Garrison | Lost 3 parts (1n1u1w) 15768 | -7/Garrison | Triggered checkpoint 15774 | -7/Garrison | Triggered checkpoint 15898 | -7/Garrison | Garrison Relay disabled 15934 | -7/Garrison | Triggered checkpoint 15963 | -7/Garrison | Found embedded Infiltrators 15991 | -7/Garrison | Discovered new exit (range 4) 16138 | -7/Garrison | Triggered checkpoint 16251 | -7/Garrison | Discovered new exit (range 7) 16340 | -7/Garrison | Triggered checkpoint 16409 | -7/Garrison | Rescued a captive Derelict 16504 | -7/Garrison | Garrison Relay disabled 16810 | -7/Garrison | Triggered checkpoint 16919 | -7/Garrison | Expanded RIF knowledge: Zone Cloak 16934 | -7/Garrison | Discovered new exit (range 10) 16972 | -7/Garrison | Triggered checkpoint 16973 | -7/Garrison | Core integrity fell below 50% 17003 | -7/Garrison | Discovered new exit (range 5) 17112 | -7/Garrison | Triggered checkpoint 17129 | -7/Garrison | Garrison Relay disabled 17274 | -7/Garrison | Triggered checkpoint 17290 | -7/Garrison | Garrison Relay disabled 17427 | -7/Garrison | Entered Factory 17427 | -6/Factory | Accompanied by 6 allies 17427 | -6/Factory | Evolved 2 slots: Power x1, Utility x1 17743 | -6/Factory | Identified exit to Garrison 17745 | -6/Factory | Entered Garrison 17745 | -6/Garrison | Accompanied by 4 allies 17927 | -6/Garrison | Triggered checkpoint 17944 | -6/Garrison | Build established: Bothacker-Tank 17959 | -6/Garrison | Triggered checkpoint 18029 | -6/Garrison | Triggered checkpoint 18083 | -6/Garrison | Expanded RIF knowledge: Code Merge 18101 | -6/Garrison | Garrison Relay disabled 18162 | -6/Garrison | Discovered new exit (range 8) 18247 | -6/Garrison | Triggered checkpoint 18291 | -6/Garrison | Lost 3 allies 18684 | -6/Garrison | Phase Generator disabled 18752 | -6/Garrison | Garrison Relay disabled 18797 | -6/Garrison | Discovered new exit (range 11) 18850 | -6/Garrison | Garrison Relay disabled 19036 | -6/Garrison | Spotted B-75 Beast 19085 | -6/Garrison | Destroyed B-75 Beast 19107 | -6/Garrison | Lost 8 parts (2p2n2u2w) 19134 | -6/Garrison | Found Gamma Bomb Array 19228 | -6/Garrison | Discovered new exit (range 10) 19373 | -6/Garrison | Triggered checkpoint 19426 | -6/Garrison | Garrison Relay disabled 19532 | -6/Garrison | Entered Factory 19532 | -6/Factory | Accompanied by 1 ally 19564 | -6/Factory | Discovered new exit (range 16) 19993 | -6/Factory | Identified exit to Garrison 19993 | -6/Factory | Entered Garrison 19993 | -6/Garrison | Accompanied by 2 allies 20187 | -6/Garrison | Triggered checkpoint 20193 | -6/Garrison | Garrison Relay disabled 20589 | -6/Garrison | Spotted B-75 Beast 20613 | -6/Garrison | Allies destroyed B-75 Beast 20715 | -6/Garrison | Triggered checkpoint 20789 | -6/Garrison | Triggered checkpoint 21188 | -6/Garrison | Garrison Relay disabled 21248 | -6/Garrison | Discovered new exit (range 15) 21499 | -6/Garrison | Discovered new exit (range 15) 21773 | -6/Garrison | Triggered checkpoint 21817 | -6/Garrison | Garrison Relay disabled 21963 | -6/Garrison | Garrison Relay disabled 22035 | -6/Garrison | Discovered new exit (range 15) 22051 | -6/Garrison | Triggered checkpoint 22096 | -6/Garrison | Expanded RIF knowledge: Structural Interface 22311 | -6/Garrison | Entered Factory 22311 | -5/Factory | Accompanied by 1 ally 22311 | -5/Factory | Evolved 2 slots: Utility x2 22437 | -5/Factory | Identified exit to Garrison 22437 | -5/Factory | Entered Garrison 22437 | -5/Garrison | Accompanied by 1 ally 22519 | -5/Garrison | Triggered checkpoint 22569 | -5/Garrison | Garrison Relay disabled 22779 | -5/Garrison | Spotted B-75 Beast 22801 | -5/Garrison | Triggered checkpoint 22832 | -5/Garrison | DAS Turret deployed 22843 | -5/Garrison | Lost 5 allies 22849 | -5/Garrison | Allies destroyed B-75 Beast 22876 | -5/Garrison | Lost 6 parts (2p2u2w) 22877 | -5/Garrison | Triggered checkpoint 23036 | -5/Garrison | Triggered checkpoint 23103 | -5/Garrison | Lost 6 parts (1p1n3u1w) 23121 | -5/Garrison | Destroyed 10 combat bots 23225 | -5/Garrison | Spotted B-75 Beast 23269 | -5/Garrison | Destroyed B-75 Beast 23534 | -5/Garrison | Discovered new exit (range 14) 23661 | -5/Garrison | Expanded RIF knowledge: Coupler Efficiency 23710 | -5/Garrison | Garrison Relay disabled 24009 | -5/Garrison | Build established: Botlord-Tank 24013 | -5/Garrison | Triggered checkpoint 24038 | -5/Garrison | Discovered new exit (range 12) 24285 | -5/Garrison | Triggered checkpoint 24393 | -5/Garrison | Triggered checkpoint 24445 | -5/Garrison | Triggered checkpoint 24542 | -5/Garrison | Garrison Relay disabled 24582 | -5/Garrison | Discovered new exit (range 10) 24636 | -5/Garrison | Garrison Relay disabled 24827 | -5/Garrison | Entered Factory 24827 | -4/Factory | Accompanied by 1 ally 24827 | -4/Factory | Evolved 2 slots: Propulsion x1, Utility x1 24894 | -4/Factory | Discovered new exit (range 8) 25312 | -4/Factory | Discovered new exit (range 15) 25327 | -4/Factory | First assault squad dispatched 25499 | -4/Factory | Lost 3 allies 25516 | -4/Factory | Found Prototype Launcher 25617 | -4/Factory | P-70 Sage assimilated allied Enforcer 7a 25658 | -4/Factory | Lost 3 parts (1p1u1w) 25724 | -4/Factory | System corruption reached 10% 25725 | -4/Factory | Core integrity fell below 50% 25732 | -4/Factory | Identified Mni. Smartbomb Launcher 25738 | -4/Factory | Core integrity fell below 20% 25744 | -4/Factory | Destroyed by H-77 Assassin with Coil Gun Last Messages --------------- 25736_ Dropped Huge Storage Unit. 25736_ Dropped Hvy. Linear Accelerator. 25737_ Slug penetrates Wall. 25737_ Slug penetrates Earth. 25737_ Slug penetrates Wall. 25737_ Penetrated by Slug. 25737_ Slug penetrates Earth. 25737_ Penetrated by Slug. 25740_ Acquired Deploy-a-Sentry. 25740_ Slug penetrates Wall. 25741_ Penetrated by Slug. 25741_ Slug penetrates Earth. 25741_ Penetrated by Slug. 25741_ Slug penetrates H-71 Marshal. 25743_ Adv. Remote Datajack destroyed. 25743_ Knocked back. 25743_ Penetrated by Slug. 25743_ Slug penetrates Earth. [Achievement: 40k Club] [Achievement: Punisher] Map ----- +----------------------------------------------------+ | ?????????????????????????????????????????????????? | | ?????????????????????????????????????????????????? | | ?????????????????????????????????????????????????? | | ?????????????????????????????????????????????????? | | ?????????????????????????????????????????????????? | | ?????????????????????????????????????????????????? | | ?????????????????????????????????????????????????? | | ?????????????????????????????????????????????????? | | ?????????????????????????????????????????????????? | | ?????????????????????????????????????????????????? | | ???????????????????????????????????????##+++#????? | | ??????????????????????#????????????????# #???? | | ??????????????????????# ???????????????# #???? | | ??????????????????????+ ??????########## #???? | | ??????????????????????#g??????# + +???? | | ??????????????????????# "?????# !?# #???? | | ??????????????????????# "?????" * # #???? | | ??????????????????????? "?????# """# #???? | | ??????????????????????? ?????# """# #???? | | ???????????????????????#/?????# """# #???? | | ???????????????????????#h?????# ""# #???? | | ???????????????????????# ###### " #???+ | | ??????????????????????## |!#!## %#??? | | ??????????? ##+#### h!]!=### ## # #??? | | ???????????? % Y%%=[!H #??? | | ???????????????????#### @=!!## #??? | | ??????????????????????## ]] #" # #### | | ???????????????????????### ### % | | ?????????????????????????# ##?# | | ??????????????????????????##??# % | | ???????????????????????????? + %# | | ??????????????????????????????# | | ??????????????????????????????# ! ## | | ??????????????????????????????## # | | ??????????????##############???# % | | ??????????????# #???### | | ??????????????# #?????# """ | | ??????????????# ! #?????# ""F | | ??????????????# #?????# "" | | ??????????????# #?????# """ | | ??????????????# #?????# """ | | ???????#####??# #????????? # | | ??????? #??# #?????????? " + | | ??????? #??# #?????#? ? """ # | | ???????"" #??# #?????# """ """ # | | ?????"""" #??# #?????# "!= | | ?""" """" #??# ##??#?# [%%| | | ?""" """" ##########+###################### %=! | | """" """" # % %%= %|= | | """" """" # =% ^ == | +----------------------------------------------------+ Best States ------------- Heat Dissipation 90 Energy Generation 36 Energy Capacity 530 Matter Stores 300 Matter Capacity 550 Sight Range 16 Terrain Scan Density 10 Armor Coverage 1200 Resistance: KI 20 Resistance: TH 10 Resistance: EM 15 Evasion (%) 55 Targeting Accuracy 8 Recoil Reduction 5 Relay Coupler Types 3 Relay Coupler Value 120 Item Schematics ----------------- None Robot Schematics ------------------ None Fabricated ------------ Nothing Repaired ---------- Nothing Alien Tech Used ----------------- None Achievements -------------- 40k Club Can't Touch This Punisher Challenges ------------ None Game ------ Seed RocketSmallStorm Manual? 0 Play Time 03:17:07 Cumulative 189.9 hours Start 2025.09.19 @ 13:10:36 End 2025.09.19 @ 19:33:22 Sessions 1 Manual Loads 0 Difficulty Rogue Special Mode None Game No. 255 Rogue 255 Adventurer 0 Explorer 0 Win Type - Total 3 Types 2/0/0/1/0/0/0/0/0/0 Lore% 73 Gallery% 72 Achievement% 62 Wizard Run 0 Options --------- Layout 0 ASCII 0 Keyboard 0 Movement Mouse Keybinds 0 Fullscreen 1 Font 16/SmallcapsGlow Map View 75x55 Zoom Use 0% Tactical HUD 1 Map Filters NONE Filters NONE Steam 1 RUN: 6fc51b9c-441f-42ed-b808-f09c2eeeefac